[Event "Titled Tuesday Blitz May 30 Late 2023"]
[White "Wizard_of_Odds"]
[Black "Milikow, Yoav"]
[BlackFideId "2822237"]
[WhiteElo "2442"]
[BlackElo "2410"]
[Result "0-1"]
[Round "01"]
[TimeControl "180+2"]
[Date "2023.05.31"]
[WhiteClock "0:00:00"]
[BlackClock "0:01:47"]

1. d4 {[%clk 0:02:58]}  Nf6 {[%clk 0:02:57]} 2. c4 {[%clk 0:02:58]}  e6 {[%clk 0:02:53]} 3. Nc3 {[%clk 0:02:57]}  d5 {[%clk 0:02:51]} 4. cxd5 {[%clk 0:02:56]}  exd5 {[%clk 0:02:50]} 5. Bf4 {[%clk 0:02:55]}  Bb4 {[%clk 0:02:48]} 6. e3 {[%clk 0:02:49]}  O-O {[%clk 0:02:45]} 7. Ne2 {[%clk 0:02:45]}  Re8 {[%clk 0:02:42]} 8. h3 {[%clk 0:02:39]}  Bd6 {[%clk 0:02:31]} 9. Qc2 {[%clk 0:02:29]}  Nc6 {[%clk 0:02:29]} 10. a3 {[%clk 0:02:27]}  Bxf4 {[%clk 0:02:28]} 11. Nxf4 {[%clk 0:02:11]}  Nxd4 {[%clk 0:02:28]} 12. Qd1 {[%clk 0:02:11]}  c5 {[%clk 0:02:25]} 13. Be2 {[%clk 0:00:54]}  Nxe2 {[%clk 0:02:16]} 14. Qxe2 {[%clk 0:00:55]}  d4 {[%clk 0:02:16]} 15. O-O-O {[%clk 0:00:54]}  Bd7 {[%clk 0:02:06]} 16. Ncd5 {[%clk 0:00:39]}  Nxd5 {[%clk 0:02:04]} 17. Nxd5 {[%clk 0:00:40]}  Ba4 {[%clk 0:02:04]} 18. Qc4 {[%clk 0:00:28]}  b5 {[%clk 0:02:01]} 19. Qa2 {[%clk 0:00:23]}  Bxd1 {[%clk 0:01:58]} 20. Rxd1 {[%clk 0:00:24]}  Qg5 {[%clk 0:01:52]} 21. Nc7 {[%clk 0:00:15]}  dxe3 {[%clk 0:01:51]} 22. Nxe8 {[%clk 0:00:12]}  e2+ {[%clk 0:01:50]} 23. f4 {[%clk 0:00:07]}  Qxf4+ {[%clk 0:01:50]} 24. Kc2 {[%clk 0:00:06]}  Qa4+ {[%clk 0:01:48]} 25. b3 {[%clk 0:00:03]}  Qe4+ {[%clk 0:01:47]} 26. Kc1 {[%clk 0:00:02]}  exd1=Q+ {[%clk 0:01:46]} 27. Kxd1 {[%clk 0:00:02]}  Rxe8 {[%clk 0:01:46]} 28. Qd2 {[%clk 0:00:01]}  Qb1+ {[%clk 0:01:45]} 29. Qc1 {[%clk 0:00:01]}  Rd8+ {[%clk 0:01:46]} 30. Ke2 {[%clk 0:00:00]}  Qxc1 {[%clk 0:01:47]} 0-1


[Site "https://www.chess.com"]

[Event "Titled Tuesday Blitz May 30 Late 2023"]
[White "Mekhitarian, Krikor Sevag"]
[Black "Pasti, Aron"]
[WhiteFideId "2107660"]
[BlackFideId "785857"]
[WhiteElo "2604"]
[BlackElo "2173"]
[Result "0-1"]
[Round "01"]
[TimeControl "180+2"]
[Date "2023.05.31"]
[WhiteClock "0:00:03"]
[BlackClock "0:00:21"]

1. Nf3 {[%clk 0:03:00]}  d5 {[%clk 0:02:59]} 2. c4 {[%clk 0:02:59]}  d4 {[%clk 0:02:59]} 3. b4 {[%clk 0:02:58]}  f6 {[%clk 0:02:58]} 4. Na3 {[%clk 0:02:58]}  e5 {[%clk 0:02:57]} 5. Nc2 {[%clk 0:02:59]}  c5 {[%clk 0:02:51]} 6. bxc5 {[%clk 0:02:52]}  Bxc5 {[%clk 0:02:50]} 7. d3 {[%clk 0:02:53]}  Nc6 {[%clk 0:02:49]} 8. g3 {[%clk 0:02:53]}  Nge7 {[%clk 0:02:46]} 9. Bg2 {[%clk 0:02:52]}  O-O {[%clk 0:02:46]} 10. O-O {[%clk 0:02:51]}  b6 {[%clk 0:02:42]} 11. Nd2 {[%clk 0:02:47]}  f5 {[%clk 0:02:37]} 12. Nb3 {[%clk 0:02:44]}  Bd6 {[%clk 0:02:37]} 13. f4 {[%clk 0:02:41]}  Bb7 {[%clk 0:02:33]} 14. fxe5 {[%clk 0:02:35]}  Bxe5 {[%clk 0:02:34]} 15. Bb2 {[%clk 0:02:29]}  f4 {[%clk 0:02:24]} 16. g4 {[%clk 0:02:25]}  Qd6 {[%clk 0:02:07]} 17. Nd2 {[%clk 0:02:16]}  Na5 {[%clk 0:02:04]} 18. Bxb7 {[%clk 0:02:12]}  Nxb7 {[%clk 0:02:04]} 19. Nf3 {[%clk 0:02:11]}  Nc6 {[%clk 0:02:00]} 20. Ba3 {[%clk 0:01:48]}  Nc5 {[%clk 0:02:00]} 21. Rb1 {[%clk 0:01:47]}  Qd7 {[%clk 0:01:57]} 22. Bxc5 {[%clk 0:01:44]}  bxc5 {[%clk 0:01:57]} 23. Rb5 {[%clk 0:01:41]}  Qxg4+ {[%clk 0:01:53]} 24. Kh1 {[%clk 0:01:41]}  Bd6 {[%clk 0:01:54]} 25. Rg1 {[%clk 0:01:41]}  Qd7 {[%clk 0:01:53]} 26. Nce1 {[%clk 0:01:32]}  Rab8 {[%clk 0:01:51]} 27. Ng5 {[%clk 0:01:27]}  Rxb5 {[%clk 0:01:42]} 28. cxb5 {[%clk 0:01:27]}  Ne5 {[%clk 0:01:42]} 29. Qb3+ {[%clk 0:01:22]}  Kh8 {[%clk 0:01:32]} 30. Qe6 {[%clk 0:01:19]}  Qxe6 {[%clk 0:01:21]} 31. Nxe6 {[%clk 0:01:19]}  Rf7 {[%clk 0:01:21]} 32. Ng5 {[%clk 0:01:16]}  Rb7 {[%clk 0:01:17]} 33. Ne4 {[%clk 0:01:17]}  Be7 {[%clk 0:01:17]} 34. a4 {[%clk 0:01:17]}  h6 {[%clk 0:01:13]} 35. Nf3 {[%clk 0:01:16]}  Nxf3 {[%clk 0:01:07]} 36. exf3 {[%clk 0:01:16]}  g5 {[%clk 0:01:08]} 37. Rc1 {[%clk 0:01:14]}  Kg8 {[%clk 0:01:03]} 38. Nxc5 {[%clk 0:01:05]}  Rc7 {[%clk 0:01:02]} 39. Nb3 {[%clk 0:01:05]}  Rc3 {[%clk 0:01:00]} 40. Rxc3 {[%clk 0:01:05]}  dxc3 {[%clk 0:01:00]} 41. Nd4 {[%clk 0:01:04]}  Bc5 {[%clk 0:00:57]} 42. Nc2 {[%clk 0:01:04]}  Kf7 {[%clk 0:00:54]} 43. a5 {[%clk 0:00:58]}  Ke6 {[%clk 0:00:54]} 44. Kg2 {[%clk 0:00:47]}  Kd5 {[%clk 0:00:53]} 45. h4 {[%clk 0:00:32]}  gxh4 {[%clk 0:00:42]} 46. Kh3 {[%clk 0:00:32]}  Be7 {[%clk 0:00:41]} 47. Kg4 {[%clk 0:00:30]}  h5+ {[%clk 0:00:36]} 48. Kxf4 {[%clk 0:00:24]}  Bg5+ {[%clk 0:00:22]} 49. Kxg5 {[%clk 0:00:19]}  h3 {[%clk 0:00:23]} 50. b6 {[%clk 0:00:17]}  axb6 {[%clk 0:00:20]} 51. a6 {[%clk 0:00:18]}  Kc6 {[%clk 0:00:20]} 52. Nd4+ {[%clk 0:00:08]}  Kc7 {[%clk 0:00:20]} 53. Nb5+ {[%clk 0:00:03]}  Kb8 {[%clk 0:00:20]} 54. Nxc3 {[%clk 0:00:03]}  h2 {[%clk 0:00:20]} 55. Kxh5 {[%clk 0:00:04]}  h1=Q+ {[%clk 0:00:21]} 56. Kg4 {[%clk 0:00:04]}  Qg1+ {[%clk 0:00:20]} 57. Kf5 {[%clk 0:00:03]}  Qc5+ {[%clk 0:00:21]} 0-1


[Site "https://www.chess.com"]

[Event "Titled Tuesday Blitz May 30 Late 2023"]
[White "Urquhart, Ed"]
[Black "Pakleza, Zbigniew"]
[WhiteFideId "2603748"]
[BlackFideId "1119290"]
[WhiteElo "2184"]
[BlackElo "2410"]
[Result "1/2-1/2"]
[Round "01"]
[TimeControl "180+2"]
[Date "2023.05.31"]
[WhiteClock "0:00:05"]
[BlackClock "0:00:05"]

1. e4 {[%clk 0:03:00]}  d6 {[%clk 0:02:58]} 2. Nc3 {[%clk 0:02:58]}  Nf6 {[%clk 0:02:57]} 3. f4 {[%clk 0:02:57]}  d5 {[%clk 0:02:52]} 4. e5 {[%clk 0:02:54]}  d4 {[%clk 0:02:52]} 5. Nce2 {[%clk 0:02:53]}  Nd5 {[%clk 0:02:52]} 6. d3 {[%clk 0:02:47]}  c5 {[%clk 0:02:49]} 7. Nf3 {[%clk 0:02:46]}  Nc6 {[%clk 0:02:31]} 8. Ng3 {[%clk 0:02:45]}  e6 {[%clk 0:02:29]} 9. Ne4 {[%clk 0:02:44]}  Be7 {[%clk 0:02:28]} 10. Be2 {[%clk 0:02:42]}  O-O {[%clk 0:02:21]} 11. O-O {[%clk 0:02:42]}  b6 {[%clk 0:02:15]} 12. Bd2 {[%clk 0:02:42]}  h6 {[%clk 0:02:12]} 13. Qe1 {[%clk 0:02:41]}  Ncb4 {[%clk 0:02:07]} 14. Qc1 {[%clk 0:02:35]}  Bb7 {[%clk 0:02:00]} 15. a3 {[%clk 0:02:35]}  Nc6 {[%clk 0:02:00]} 16. Qe1 {[%clk 0:02:35]}  f5 {[%clk 0:01:57]} 17. exf6 {[%clk 0:02:35]}  Nxf6 {[%clk 0:01:57]} 18. Qg3 {[%clk 0:02:22]}  Qd5 {[%clk 0:01:50]} 19. Nxf6+ {[%clk 0:02:13]}  Rxf6 {[%clk 0:01:42]} 20. Ne5 {[%clk 0:02:05]}  Nxe5 {[%clk 0:00:52]} 21. fxe5 {[%clk 0:02:04]}  Rxf1+ {[%clk 0:00:53]} 22. Rxf1 {[%clk 0:02:03]}  Bh4 {[%clk 0:00:52]} 23. Qg4 {[%clk 0:01:48]}  h5 {[%clk 0:00:24]} 24. Qg6 {[%clk 0:01:48]}  Qxe5 {[%clk 0:00:18]} 25. Bxh5 {[%clk 0:01:36]}  Bd5 {[%clk 0:00:09]} 26. Bf3 {[%clk 0:01:23]}  Rf8 {[%clk 0:00:07]} 27. Bxd5 {[%clk 0:01:17]}  Qxd5 {[%clk 0:00:08]} 28. Rxf8+ {[%clk 0:01:15]}  Kxf8 {[%clk 0:00:09]} 29. Qh7 {[%clk 0:01:07]}  Bf6 {[%clk 0:00:08]} 30. b3 {[%clk 0:01:03]}  b5 {[%clk 0:00:08]} 31. Qh8+ {[%clk 0:00:55]}  Kf7 {[%clk 0:00:08]} 32. Qb8 {[%clk 0:00:53]}  Qd7 {[%clk 0:00:08]} 33. Bf4 {[%clk 0:00:42]}  Be7 {[%clk 0:00:06]} 34. Qe5 {[%clk 0:00:34]}  c4 {[%clk 0:00:05]} 35. bxc4 {[%clk 0:00:33]}  bxc4 {[%clk 0:00:06]} 36. h3 {[%clk 0:00:26]}  cxd3 {[%clk 0:00:05]} 37. cxd3 {[%clk 0:00:27]}  Bxa3 {[%clk 0:00:05]} 38. Qh5+ {[%clk 0:00:22]}  Kg8 {[%clk 0:00:04]} 39. Be5 {[%clk 0:00:21]}  Bf8 {[%clk 0:00:04]} 40. Qg4 {[%clk 0:00:20]}  Bc5 {[%clk 0:00:04]} 41. Qe4 {[%clk 0:00:18]}  a5 {[%clk 0:00:04]} 42. Qa8+ {[%clk 0:00:17]}  Kh7 {[%clk 0:00:04]} 43. Qxa5 {[%clk 0:00:17]}  Qd5 {[%clk 0:00:05]} 44. Bf4 {[%clk 0:00:13]}  e5 {[%clk 0:00:05]} 45. Bd2 {[%clk 0:00:13]}  Kg6 {[%clk 0:00:05]} 46. Bb4 {[%clk 0:00:12]}  Qb3 {[%clk 0:00:04]} 47. Qxc5 {[%clk 0:00:12]}  Qxd3 {[%clk 0:00:04]} 48. Kh2 {[%clk 0:00:09]}  e4 {[%clk 0:00:04]} 49. Qd6+ {[%clk 0:00:09]}  Kh7 {[%clk 0:00:04]} 50. Bc5 {[%clk 0:00:06]}  Qe3 {[%clk 0:00:03]} 51. Bxd4 {[%clk 0:00:06]}  Qg5 {[%clk 0:00:03]} 52. Qe5 {[%clk 0:00:06]}  Qg6 {[%clk 0:00:03]} 53. h4 {[%clk 0:00:05]}  Kg8 {[%clk 0:00:03]} 54. h5 {[%clk 0:00:05]}  Qg4 {[%clk 0:00:02]} 55. Qe8+ {[%clk 0:00:04]}  Kh7 {[%clk 0:00:02]} 56. Qe5 {[%clk 0:00:04]}  Qh4+ {[%clk 0:00:02]} 57. Kg1 {[%clk 0:00:04]}  Qe1+ {[%clk 0:00:03]} 58. Kh2 {[%clk 0:00:04]}  Qh4+ {[%clk 0:00:04]} 59. Kg1 {[%clk 0:00:05]}  Qe1+ {[%clk 0:00:04]} 60. Kh2 {[%clk 0:00:05]}  Qh4+ {[%clk 0:00:05]} 1/2-1/2


[Site "https://www.chess.com"]

[Event "Titled Tuesday Blitz May 30 Late 2023"]
[White "Bordi, Kevin"]
[Black "Nilsen, Tobias Lang"]
[WhiteFideId "621862"]
[BlackFideId "1521624"]
[WhiteElo "2764"]
[BlackElo "2183"]
[Result "1-0"]
[Round "01"]
[TimeControl "180+2"]
[Date "2023.05.31"]
[WhiteClock "0:01:41"]
[BlackClock "0:02:22"]

1. e4 {[%clk 0:03:00]}  e6 {[%clk 0:02:58]} 2. d4 {[%clk 0:03:00]}  d5 {[%clk 0:02:59]} 3. Nd2 {[%clk 0:03:01]}  a6 {[%clk 0:02:59]} 4. exd5 {[%clk 0:03:02]}  exd5 {[%clk 0:03:00]} 5. Ngf3 {[%clk 0:03:02]}  Nf6 {[%clk 0:03:00]} 6. Bd3 {[%clk 0:03:03]}  c5 {[%clk 0:03:00]} 7. O-O {[%clk 0:03:02]}  c4 {[%clk 0:03:00]} 8. Re1+ {[%clk 0:03:03]}  Be7 {[%clk 0:03:01]} 9. Bf1 {[%clk 0:03:03]}  O-O {[%clk 0:03:02]} 10. b3 {[%clk 0:03:03]}  cxb3 {[%clk 0:03:03]} 11. axb3 {[%clk 0:03:04]}  Nc6 {[%clk 0:03:04]} 12. c3 {[%clk 0:03:01]}  h6 {[%clk 0:03:03]} 13. Bd3 {[%clk 0:02:59]}  Re8 {[%clk 0:03:02]} 14. Ne5 {[%clk 0:02:58]}  Qc7 {[%clk 0:02:59]} 15. Ndf3 {[%clk 0:02:56]}  Bd6 {[%clk 0:02:59]} 16. Nxc6 {[%clk 0:02:53]}  Qxc6 {[%clk 0:02:59]} 17. Rxe8+ {[%clk 0:02:52]}  Qxe8 {[%clk 0:03:00]} 18. h3 {[%clk 0:02:49]}  Qc6 {[%clk 0:02:59]} 19. c4 {[%clk 0:02:49]}  Be6 {[%clk 0:02:56]} 20. c5 {[%clk 0:02:48]}  Bc7 {[%clk 0:02:56]} 21. b4 {[%clk 0:02:47]}  Re8 {[%clk 0:02:55]} 22. Qb3 {[%clk 0:02:47]}  Bd7 {[%clk 0:02:54]} 23. Rb1 {[%clk 0:02:44]}  Qe6 {[%clk 0:02:53]} 24. Bd2 {[%clk 0:02:42]}  Bb5 {[%clk 0:02:50]} 25. Bxb5 {[%clk 0:02:38]}  axb5 {[%clk 0:02:51]} 26. Qd3 {[%clk 0:02:39]}  Qe4 {[%clk 0:02:49]} 27. Qf1 {[%clk 0:02:26]}  Qc2 {[%clk 0:02:44]} 28. Rc1 {[%clk 0:02:26]}  Qa4 {[%clk 0:02:41]} 29. Ra1 {[%clk 0:02:15]}  Qc2 {[%clk 0:02:42]} 30. Qxb5 {[%clk 0:02:12]}  Ne4 {[%clk 0:02:42]} 31. Qxe8+ {[%clk 0:02:11]}  Kh7 {[%clk 0:02:41]} 32. Be3 {[%clk 0:01:55]}  f5 {[%clk 0:02:29]} 33. Qf7 {[%clk 0:01:53]}  f4 {[%clk 0:02:26]} 34. Qf5+ {[%clk 0:01:41]}  Kh8 {[%clk 0:02:22]} 35. Ra8+ {[%clk 0:01:41]} 1-0


[Site "https://www.chess.com"]

[Event "Titled Tuesday Blitz May 30 Late 2023"]
[White "Zaitsev, Alexander"]
[Black "Hambleton, Aman"]
[WhiteFideId "4164490"]
[BlackFideId "2606577"]
[WhiteElo "2373"]
[BlackElo "2511"]
[Result "0-1"]
[Round "01"]
[TimeControl "180+2"]
[Date "2023.05.31"]
[WhiteClock "0:00:00"]
[BlackClock "0:00:02"]

1. e4 {[%clk 0:02:58]}  c5 {[%clk 0:02:52]} 2. Nf3 {[%clk 0:02:58]}  e6 {[%clk 0:02:51]} 3. g3 {[%clk 0:02:58]}  a6 {[%clk 0:02:49]} 4. Bg2 {[%clk 0:02:58]}  Nc6 {[%clk 0:02:49]} 5. O-O {[%clk 0:02:58]}  Qc7 {[%clk 0:02:49]} 6. c3 {[%clk 0:02:58]}  Nf6 {[%clk 0:02:49]} 7. Re1 {[%clk 0:02:57]}  d6 {[%clk 0:02:49]} 8. d4 {[%clk 0:02:58]}  e5 {[%clk 0:02:49]} 9. dxc5 {[%clk 0:02:52]}  dxc5 {[%clk 0:02:49]} 10. Bg5 {[%clk 0:02:50]}  Be7 {[%clk 0:02:48]} 11. Nbd2 {[%clk 0:02:41]}  Be6 {[%clk 0:02:39]} 12. Nf1 {[%clk 0:02:26]}  Rd8 {[%clk 0:01:18]} 13. Qc2 {[%clk 0:02:25]}  h6 {[%clk 0:00:35]} 14. Bxf6 {[%clk 0:02:25]}  Bxf6 {[%clk 0:00:36]} 15. Ne3 {[%clk 0:02:25]}  Ne7 {[%clk 0:00:37]} 16. c4 {[%clk 0:02:11]}  Nc6 {[%clk 0:00:22]} 17. Nd5 {[%clk 0:02:10]}  Qd6 {[%clk 0:00:20]} 18. Rad1 {[%clk 0:01:47]}  Nd4 {[%clk 0:00:20]} 19. Nxd4 {[%clk 0:01:47]}  cxd4 {[%clk 0:00:21]} 20. Qe2 {[%clk 0:01:21]}  Be7 {[%clk 0:00:13]} 21. f4 {[%clk 0:01:12]}  Rc8 {[%clk 0:00:05]} 22. b3 {[%clk 0:01:00]}  a5 {[%clk 0:00:02]} 23. Rf1 {[%clk 0:00:55]}  Rc6 {[%clk 0:00:02]} 24. h4 {[%clk 0:00:40]}  Bd8 {[%clk 0:00:02]} 25. Kh2 {[%clk 0:00:36]}  f6 {[%clk 0:00:02]} 26. Bh3 {[%clk 0:00:31]}  Bf7 {[%clk 0:00:03]} 27. fxe5 {[%clk 0:00:29]}  fxe5 {[%clk 0:00:02]} 28. Bg4 {[%clk 0:00:16]}  O-O {[%clk 0:00:02]} 29. Bh5 {[%clk 0:00:17]}  g6 {[%clk 0:00:02]} 30. Bg4 {[%clk 0:00:16]}  h5 {[%clk 0:00:03]} 31. Bh3 {[%clk 0:00:16]}  Kg7 {[%clk 0:00:03]} 32. Rf2 {[%clk 0:00:16]}  Bg8 {[%clk 0:00:02]} 33. Rdf1 {[%clk 0:00:16]}  Rxf2+ {[%clk 0:00:02]} 34. Qxf2 {[%clk 0:00:17]}  Bf6 {[%clk 0:00:02]} 35. Bd7 {[%clk 0:00:14]}  Qxd7 {[%clk 0:00:02]} 36. Nxf6 {[%clk 0:00:14]}  Qe7 {[%clk 0:00:02]} 37. Nd5 {[%clk 0:00:13]}  Qd8 {[%clk 0:00:01]} 38. Qe2 {[%clk 0:00:12]}  b6 {[%clk 0:00:02]} 39. Rf2 {[%clk 0:00:12]}  Rd6 {[%clk 0:00:02]} 40. Qf1 {[%clk 0:00:12]}  Re6 {[%clk 0:00:02]} 41. Qh3 {[%clk 0:00:13]}  Rd6 {[%clk 0:00:02]} 42. Qf1 {[%clk 0:00:12]}  Be6 {[%clk 0:00:02]} 43. Rf3 {[%clk 0:00:13]}  Bg4 {[%clk 0:00:02]} 44. Rf2 {[%clk 0:00:13]}  Qe8 {[%clk 0:00:02]} 45. Qd3 {[%clk 0:00:13]}  Rd7 {[%clk 0:00:02]} 46. Qd2 {[%clk 0:00:14]}  Rf7 {[%clk 0:00:03]} 47. Rxf7+ {[%clk 0:00:12]}  Qxf7 {[%clk 0:00:03]} 48. Qe1 {[%clk 0:00:11]}  Qf3 {[%clk 0:00:03]} 49. Kg1 {[%clk 0:00:10]}  d3 {[%clk 0:00:03]} 50. Qe3 {[%clk 0:00:04]}  Qd1+ {[%clk 0:00:03]} 51. Kf2 {[%clk 0:00:04]}  d2 {[%clk 0:00:03]} 52. Nc3 {[%clk 0:00:02]}  Qc1 {[%clk 0:00:03]} 53. Qd3 {[%clk 0:00:01]}  Qe1+ {[%clk 0:00:03]} 54. Kg2 {[%clk 0:00:00]}  d1=Q {[%clk 0:00:02]} 0-1


[Site "https://www.chess.com"]

[Event "Titled Tuesday Blitz May 30 Late 2023"]
[White "Harriott, Tyrell"]
[Black "Tatarinov, Dmitry"]
[WhiteFideId "2086484"]
[BlackFideId "24160067"]
[WhiteElo "2107"]
[BlackElo "2326"]
[Result "1-0"]
[Round "01"]
[TimeControl "180+2"]
[Date "2023.05.31"]
[WhiteClock "0:00:42"]
[BlackClock "0:00:00"]

1. d4 {[%clk 0:02:59]}  Nf6 {[%clk 0:02:50]} 2. e3 {[%clk 0:02:59]}  g6 {[%clk 0:02:50]} 3. Bd3 {[%clk 0:02:58]}  d5 {[%clk 0:02:44]} 4. f4 {[%clk 0:02:59]}  c5 {[%clk 0:02:43]} 5. c3 {[%clk 0:02:58]}  Nc6 {[%clk 0:02:43]} 6. Nf3 {[%clk 0:02:57]}  Bg7 {[%clk 0:02:43]} 7. O-O {[%clk 0:02:58]}  O-O {[%clk 0:02:43]} 8. Nbd2 {[%clk 0:02:57]}  Qc7 {[%clk 0:02:40]} 9. Qe1 {[%clk 0:02:56]}  a5 {[%clk 0:02:05]} 10. Ne5 {[%clk 0:02:52]}  b6 {[%clk 0:02:03]} 11. Ndf3 {[%clk 0:02:47]}  Ba6 {[%clk 0:02:02]} 12. Bxa6 {[%clk 0:02:41]}  Rxa6 {[%clk 0:02:02]} 13. Qe2 {[%clk 0:02:40]}  Raa8 {[%clk 0:02:02]} 14. Bd2 {[%clk 0:02:39]}  Ne4 {[%clk 0:02:01]} 15. Be1 {[%clk 0:02:39]}  e6 {[%clk 0:01:56]} 16. Rc1 {[%clk 0:02:35]}  a4 {[%clk 0:01:56]} 17. Bh4 {[%clk 0:02:28]}  c4 {[%clk 0:01:47]} 18. a3 {[%clk 0:02:25]}  Ra5 {[%clk 0:01:38]} 19. Rc2 {[%clk 0:02:21]}  Rb5 {[%clk 0:01:33]} 20. Ng4 {[%clk 0:02:20]}  f6 {[%clk 0:01:30]} 21. Nf2 {[%clk 0:02:20]}  Ne7 {[%clk 0:01:28]} 22. Nd2 {[%clk 0:02:15]}  Nxd2 {[%clk 0:01:27]} 23. Rxd2 {[%clk 0:02:13]}  Nf5 {[%clk 0:01:26]} 24. Bg3 {[%clk 0:02:08]}  Nxg3 {[%clk 0:01:16]} 25. hxg3 {[%clk 0:02:09]}  f5 {[%clk 0:01:16]} 26. Nh3 {[%clk 0:02:09]}  Bf6 {[%clk 0:01:15]} 27. g4 {[%clk 0:02:07]}  Qe7 {[%clk 0:01:13]} 28. Kh1 {[%clk 0:02:06]}  Ra5 {[%clk 0:01:08]} 29. Rg1 {[%clk 0:02:07]}  fxg4 {[%clk 0:00:59]} 30. Qxg4 {[%clk 0:02:06]}  Ra7 {[%clk 0:00:58]} 31. Nf2 {[%clk 0:02:01]}  Qg7 {[%clk 0:00:51]} 32. Qh3 {[%clk 0:02:01]}  Re7 {[%clk 0:00:49]} 33. Ng4 {[%clk 0:01:58]}  h5 {[%clk 0:00:48]} 34. Nf2 {[%clk 0:01:58]}  Kf7 {[%clk 0:00:46]} 35. g3 {[%clk 0:01:55]}  Ke8 {[%clk 0:00:43]} 36. Kg2 {[%clk 0:01:55]}  Kd8 {[%clk 0:00:43]} 37. Kf1 {[%clk 0:01:55]}  Kc7 {[%clk 0:00:41]} 38. Ke1 {[%clk 0:01:54]}  Rh8 {[%clk 0:00:38]} 39. Kd1 {[%clk 0:01:54]}  g5 {[%clk 0:00:38]} 40. Rg2 {[%clk 0:01:44]}  Qg6 {[%clk 0:00:39]} 41. Kc1 {[%clk 0:01:42]}  Qf5 {[%clk 0:00:36]} 42. Qh1 {[%clk 0:01:39]}  gxf4 {[%clk 0:00:31]} 43. exf4 {[%clk 0:01:34]}  Rg7 {[%clk 0:00:31]} 44. Re2 {[%clk 0:01:24]}  h4 {[%clk 0:00:28]} 45. Nd1 {[%clk 0:01:13]}  Rxg3 {[%clk 0:00:26]} 46. Rxg3 {[%clk 0:01:12]}  hxg3 {[%clk 0:00:26]} 47. Qf3 {[%clk 0:01:07]}  Rh2 {[%clk 0:00:23]} 48. Rg2 {[%clk 0:01:02]}  Rxg2 {[%clk 0:00:20]} 49. Qxg2 {[%clk 0:01:03]}  Qxf4+ {[%clk 0:00:20]} 50. Kb1 {[%clk 0:01:03]}  Bg5 {[%clk 0:00:20]} 51. Ka2 {[%clk 0:00:59]}  Kc6 {[%clk 0:00:19]} 52. Qc2 {[%clk 0:00:54]}  Kb5 {[%clk 0:00:18]} 53. Qg6 {[%clk 0:00:51]}  Kc6 {[%clk 0:00:06]} 54. Qe8+ {[%clk 0:00:51]}  Kb7 {[%clk 0:00:06]} 55. Qd7+ {[%clk 0:00:51]}  Qc7 {[%clk 0:00:06]} 56. Qxe6 {[%clk 0:00:48]}  g2 {[%clk 0:00:05]} 57. Qg4 {[%clk 0:00:46]}  Bc1 {[%clk 0:00:02]} 58. Qxg2 {[%clk 0:00:44]}  Qc6 {[%clk 0:00:02]} 59. Qc2 {[%clk 0:00:42]}  Bf4 {[%clk 0:00:02]} 60. Nf2 {[%clk 0:00:42]}  Bc7 {[%clk 0:00:00]} 61. Ng4 {[%clk 0:00:42]} 1-0


[Site "https://www.chess.com"]

[Event "Titled Tuesday Blitz May 30 Late 2023"]
[White "Tejedor Fuente, Enrique"]
[Black "Grycel, Kamil"]
[WhiteFideId "2299100"]
[BlackFideId "1115499"]
[WhiteElo "2496"]
[BlackElo "2427"]
[Result "1-0"]
[Round "01"]
[TimeControl "180+2"]
[Date "2023.05.31"]
[WhiteClock "0:00:16"]
[BlackClock "0:00:00"]

1. b4 {[%clk 0:02:55]}  c6 {[%clk 0:02:56]} 2. Bb2 {[%clk 0:02:53]}  a5 {[%clk 0:02:56]} 3. a3 {[%clk 0:02:42]}  axb4 {[%clk 0:02:54]} 4. axb4 {[%clk 0:02:43]}  Rxa1 {[%clk 0:02:54]} 5. Bxa1 {[%clk 0:02:38]}  Qb6 {[%clk 0:02:46]} 6. c3 {[%clk 0:02:34]}  d5 {[%clk 0:02:41]} 7. Nf3 {[%clk 0:02:32]}  Nf6 {[%clk 0:02:40]} 8. e3 {[%clk 0:02:29]}  Bg4 {[%clk 0:02:38]} 9. Be2 {[%clk 0:02:29]}  Nbd7 {[%clk 0:02:34]} 10. O-O {[%clk 0:02:29]}  e6 {[%clk 0:02:34]} 11. h3 {[%clk 0:02:28]}  Bh5 {[%clk 0:02:34]} 12. d3 {[%clk 0:02:27]}  Be7 {[%clk 0:02:32]} 13. Nbd2 {[%clk 0:02:26]}  O-O {[%clk 0:02:29]} 14. Bb2 {[%clk 0:02:25]}  Ra8 {[%clk 0:02:28]} 15. Qc2 {[%clk 0:02:23]}  h6 {[%clk 0:01:57]} 16. Ra1 {[%clk 0:02:21]}  Rxa1+ {[%clk 0:01:55]} 17. Bxa1 {[%clk 0:02:22]}  Qa7 {[%clk 0:01:55]} 18. Qb1 {[%clk 0:02:20]}  Bg6 {[%clk 0:01:54]} 19. Bb2 {[%clk 0:02:16]}  Nb6 {[%clk 0:01:33]} 20. e4 {[%clk 0:02:09]}  Qa6 {[%clk 0:01:21]} 21. e5 {[%clk 0:02:03]}  Nfd7 {[%clk 0:01:21]} 22. Qf1 {[%clk 0:01:52]}  Qa2 {[%clk 0:01:04]} 23. Qb1 {[%clk 0:01:52]}  Qa6 {[%clk 0:01:01]} 24. Qc2 {[%clk 0:01:48]}  Nc4 {[%clk 0:00:51]} 25. Bc1 {[%clk 0:00:51]}  Qa1 {[%clk 0:00:48]} 26. Nb3 {[%clk 0:00:38]}  Qa4 {[%clk 0:00:45]} 27. Bf4 {[%clk 0:00:36]}  Na3 {[%clk 0:00:35]} 28. Qa2 {[%clk 0:00:33]}  Nb6 {[%clk 0:00:35]} 29. Bc1 {[%clk 0:00:31]}  Nb5 {[%clk 0:00:34]} 30. Qb2 {[%clk 0:00:27]}  Qa8 {[%clk 0:00:28]} 31. Qc2 {[%clk 0:00:25]}  Qa4 {[%clk 0:00:25]} 32. Qb2 {[%clk 0:00:24]}  Bf8 {[%clk 0:00:23]} 33. Na5 {[%clk 0:00:19]}  Nc4 {[%clk 0:00:03]} 34. dxc4 {[%clk 0:00:17]}  dxc4 {[%clk 0:00:04]} 35. Nxc4 {[%clk 0:00:16]}  Qa6 {[%clk 0:00:04]} 36. Na5 {[%clk 0:00:16]}  b6 {[%clk 0:00:00]} 37. Nxc6 {[%clk 0:00:16]} 1-0


[Site "https://www.chess.com"]